Workbook

Sheet Plan1
A5: PLANILHA DE ORÇAMENTO DE UNIFORMES PARA CADA EMPREGADO – MOTORISTA
A6: Descrição | B6: Preço médio praticado no mercado por unidade (R$) | C6: Qtde de uniformes fornecidos em 12 meses por empregado | D6: Custo anual do uniforme por empregado | E6: Custo mensal do uniforme por empregado | F6: Cotação I | G6: Cotação II | H6: Cotação (compras.gov.br) Média/Mediana | I6: Total
A7: Calça social tipo esporte fino com ziper, em algodão. | B7: =I7/3 -> 141.3333333 | C7: 4 | D7: =B7*C7 -> 565.3333333 | E7: =D7/12 -> 47.11111111 | F7: 220 | G7: 115 | H7: 89 | I7: =F7+G7+H7 -> 424
A8: Camisa social manga curta em algodão e emblema da empresa pintado no lado esquerdo superior, mangas curtas, de boa qualidade. | B8: =I8/3 -> 132.1633333 | C8: 4 | D8: =B8*C8 -> 528.6533333 | E8: =D8/12 -> 44.05444444 | F8: 220 | G8: 118 | H8: 58.49 | I8: =F8+G8+H8 -> 396.49
A9: Cinto de couro constituído de 1 (uma) face na cor preta sem costura, fivela em metal, com garra regulável, de boa qualidade. | B9: =I9/3 -> 36.33333333 | C9: 2 | D9: =B9*C9 -> 72.66666667 | E9: =D9/12 -> 6.055555556 | F9: 0 | G9: 29 | H9: 80 | I9: =F9+G9+H9 -> 109
A10: Par de calçado: sapato social preto em couro, solado baixo, com palmilha antibacteriana, de boa qualidade. | B10: =I10/3 -> 71.33333333 | C10: 2 | D10: =B10*C10 -> 142.6666667 | E10: =D10/12 -> 11.88888889 | F10: 0 | G10: 99 | H10: 115 | I10: =F10+G10+H10 -> 214
A11: Par de meia em algodão, tipo cano médio, cor preta, de boa qualidade. Marca Trifill, Lupo ou similar. | B11: =I11/3 -> 9.99 | C11: 8 | D11: =B11*C11 -> 79.92 | E11: =D11/12 -> 6.66 | F11: 0 | G11: 18 | H11: 11.97 | I11: =F11+G11+H11 -> 29.97
A12: TOTAL | B12: =SUM(B7:B11) -> 391.1533333 | C12: - | D12: =SUM(D7:D11) -> 1389.24 | E12: =SUM(E7:E11) -> 115.77
A14: 1 - O conjunto de uniforme deverá ser entregue dentro do prazo de 10 (dez) dias, a contar do início da prestação dos serviços, nas condições determinadas pela FISCALIZAÇÃO.
A15: 2 - Todos os uniformes estarão sujeitos à prévia aprovação da CONTRATANTE e, a pedido dela, poderão ser substituídos, caso não correspondam às especificações necessárias e adequadas à execução dos serviços.
A16: 3 - Poderão ocorrer eventuais alterações nas especificações dos uniformes, quanto ao tecido, à cor, ao modelo, desde que previamente aceitas pela Administração.
A17: 4 - Os uniformes deverão ser entregues aos empregados, mediante recibo (relação nominal), cuja cópia deverá ser entregue à CONTRATANTE, sempre que solicitado pela FISCALIZAÇÃO.
A18: 5 - O custo do uniforme não poderá ser repassado ao ocupante do posto de trabalho.
A19: 6 - A CONTRATADA não poderá exigir do empregado o uniforme usado, quando da entrega dos novos.
A20: 7 - Sempre que houver renovação ou prorrogação do contrato, a CONTRATADA deverá fornecer novos uniformes.
